Cogmind - Beta 13 @@@ ROGUE MODE // 2024.06.22 @ 05:46:19 Player: deadnoob Result: Destroyed by P-60 Hacker with Shock Rifle Performance ------------- Evolutions (1) 500 Regions Visited (5) 1000 Robots Destroyed (66) 330 Value Destroyed (1672) 1672 Prototype IDs (25) 500 Alien Tech Used (0) 0 Bonus (1794) 1794 TOTAL SCORE: 5796 Bonus ------- Follower Combat Kills 1680 Aligned with FarCom 300 Friendly Fire -186 Cogmind --------- Core Integrity 0/400 Matter 300/300 Energy 265/265 System Corruption 9% Temperature Cool (0) Movement Treading (240) Ox1 Location -9/Exiles Parts ------- > --- POWER (1) -------- Improved Ion Engine > --- PROPULSION (3) --- Light Treads > --- UTILITY (3) ------ Large Storage Unit > --- WEAPON (2) ------- (None) > --- INVENTORY (15) --- Light Treads Light Treads Light Armor Plating Heavy Assault Rifle Heavy Assault Rifle Mini Grenade Launcher Mini Grenade Launcher Peak State ------------ > --- POWER ------------ Heavy Ion Engine > --- PROPULSION ------- Light Treads Light Treads Light Treads > --- UTILITY ---------- Large Storage Unit Salvage Targeting Computer Supersonic Drone Bay > --- WEAPON ----------- Mini Grenade Launcher Mini Grenade Launcher > --- INVENTORY -------- Improved Ion Engine Light Treads Light Treads Light Treads Modified TNC Light Armor Plating Light Armor Plating Light Armor Plating Heavy Assault Rifle Heavy Assault Rifle Heavy Assault Rifle Heavy Assault Rifle [Rating: 23] Favorites ----------- Power Heavy Ion Engine Engine Heavy Ion Engine Power Core Light Nuclear Core Propulsion Light Treads Treads Light Treads Leg Aluminum Leg Utility Targeting Computer Device Supersonic Drone Bay Storage Large Storage Unit Processor Targeting Computer Protection Light Armor Plating Weapon Heavy Assault Rifle Energy Gun Medium Laser Energy Cannon Advanced Beam Cannon Ballistic Gun Heavy Assault Rifle Launcher Mini Grenade Launcher Build | -11 -10 -10 -9 -9 -9 ------- Run | Yrd Mat Min Mat Min Exi Slots Evolved 2 | . . . 2 . . Power . | . . . . . . Propulsion 1 | . . . 1 . . Utility 1 | . . . 1 . . Weapon . | . . . . . . Parts Attached 66 | 1 2 8 37 5 13 Power 6 | . . 2 3 . 1 Engine 3 | . . 1 1 . 1 Core 3 | . . 1 2 . . Reactor . | . . . . . . Propulsion 17 | . . 2 13 1 1 Treads 16 | . . 1 13 1 1 Leg 1 | . . 1 . . . Wheel . | . . . . . . Hover . | . . . . . . Flight . | . . . . . . Utility 13 | . 2 1 4 . 6 Device 1 | . . . . . 1 Storage 3 | . 1 . 2 . . Processor 5 | . 1 1 2 . 1 Hackware . | . . . . . . Protection 4 | . . . . . 4 Artifact . | . . . . . . Weapon 30 | 1 . 3 17 4 5 Energy Gun 1 | 1 . . . . . Energy Cannon 2 | . . . 2 . . Ballistic Gun 20 | . . 3 13 2 2 Ballistic Cannon . | . . . . . . Launcher 7 | . . . 2 2 3 Special Weapon . | . . . . . . Impact Weapon . | . . . . . . Slashing Weapon . | . . . . . . Piercing Weapon . | . . . . . . Special Melee Weapon . | . . . . . . Unidentified Prototypes 2 | . . . 2 . . Parts Lost 16 | . . 3 3 1 9 Power 3 | . . 1 1 . 1 Propulsion 6 | . . 1 1 1 3 Utility 4 | . . 1 . . 3 Weapon 3 | . . . 1 . 2 Highest Loss Streak 6 | . . 3 1 1 6 To Critical Strikes . | . . . . . . Average Slot Usage (%) 97 | . 99 99 96 100 97 Engine 8 | . 14 13 3 11 11 Core 2 | . . . 7 . . Treads 25 | . . 1 28 33 32 Leg 6 | . 28 26 3 . . Storage 11 | . 14 14 11 11 11 Processor 16 | . 13 14 20 22 10 Protection 2 | . . . . . 8 Energy Gun 1 | . 14 2 . . . Energy Cannon 1 | . . . 3 . . Ballistic Gun 14 | . 14 25 18 21 3 Launcher 5 | . . . . . 17 Naked Turns . | . . . . . . Heaviest Build 37 | 11 16 17 34 34 37 Greatest Support 60 | 20 20 20 60 60 60 Greatest Overweight (x) 10 | . . 1 1 . 10 Average Overweight (x) . | . . . . . . Largest Inventory Capacity 15 | 8 10 10 15 15 15 Average Capacity 12 | 8 9 10 10 15 15 Most Carried 15 | 6 10 10 15 15 15 Average Carried 10 | 6 8 9 10 14 11 Final Capacity 15 | 8 10 10 15 15 15 Final Carried 15 | 6 10 10 15 14 7 Class Distribution -------------------- 63% | Scavenger-Mutant 36% | Mutant Dominant Class ---------------- Mutant | -10/Materials Mutant | -10/Mines Scavenger-Mutant | -9/Materials Scavenger-Mutant | -9/Mines Scavenger-Mutant | -9/Exiles Resources | -11 -10 -10 -9 -9 -9 ----------- Run | Yrd Mat Min Mat Min Exi Matter Collected 1801 | 200 134 215 762 211 279 Remotely . | . . . . . . Salvage Created 2022 | . 98 187 1237 293 207 Parts 148 | . 10 19 89 15 15 Haulers Intercepted 6 | . 1 . 5 . . Recyclers Shooed 3 | . . . 3 . . Parts Field Recycled . | . . . . . . Retrieved Matter . | . . . . . . Parts Self-Destructed . | . . . . . . Prevented . | . . . . . . Kills | -11 -10 -10 -9 -9 -9 ------- Run | Yrd Mat Min Mat Min Exi Combat Hostiles Destroyed 54 | . . 9 26 9 10 Guns 34 | . . 9 17 7 1 Cannons 1 | . . . 1 . . AOE 18 | . . . 7 2 9 Classes Destroyed 13 | . 3 3 2 2 3 Worker 1 | . 1 . . . . Tunneler 1 | . . . . 1 . Hauler 6 | . 1 . 5 . . Recycler 1 | . . . 1 . . Watcher 5 | . 1 . 4 . . Swarmer 19 | . . 8 11 . . Grunt 15 | . . 1 5 6 3 Brawler 2 | . . . . . 2 Duelist 1 | . . . . 1 . Sentry 10 | . . . 10 . . Hunter 3 | . . . . . 3 Programmer 2 | . . . . . 2 Assembled 3 | . . 1 . 2 . Best Kill Streak 7 | . 2 3 6 4 7 Combat Bots Only 7 | . . 3 6 4 7 Max Kills in Single Turn 3 | . 1 1 3 2 3 Gunslinging 1 | . . . . 1 . Exploded 3 | . . . 3 2 3 Melee . | . . . . . . Uniques/NPCs Destroyed . | . . . . . . Combat | -11 -10 -10 -9 -9 -9 -------- Run | Yrd Mat Min Mat Min Exi Hostile Shots Fired 261 | . . 49 109 34 69 Missed 65 | . . 10 31 8 16 Damage Taken 2916 | . 24 392 1001 464 1035 Core 495 | . 24 61 127 104 179 Absorbed by Shields . | . . . . . . Regen/Repaired (Parts) 123 | . . . 123 . . Core Remaining (%) 83 | 100 . 66 . . . Volleys Fired 164 | . 8 37 85 24 10 Largest 2 | . 2 2 2 2 2 Hottest 136 | . 70 70 136 46 60 Shots Fired 319 | . 16 74 166 43 20 Gun 270 | . 16 74 136 38 6 Cannon 26 | . . . 26 . . Launcher 23 | . . . 4 5 14 Special . | . . . . . . Kinetic 247 | . 8 59 136 38 6 Thermal 49 | . 8 15 26 . . Explosive 23 | . . . 4 5 14 Electromagnetic . | . . . . . . Robot Hit Streak 14 | . 5 7 14 11 6 Robot Miss Streak 6 | . 2 6 3 2 1 Penetration Max . | . . . . . . Secondary Targets 5 | . . 2 1 2 . Max Gunslinging Chain 1 | . . 1 1 1 . Shots Hit Robots 202 | . 8 43 113 31 7 Core Hits 118 | . 4 18 52 18 26 Critical Kills 1 | . . . 1 . . Critical Parts Destroyed 1 | . . . . 1 . Critical Strikes 2 | . . . 1 1 . Meltdown 1 | . . . 1 . . Destroy 1 | . . . . 1 . Melee Attacks . | . . . . . . Impact . | . . . . . . Slashing . | . . . . . . Piercing . | . . . . . . Sneak Attacks . | . . . . . . Combat Hostiles . | . . . . . . Follow-up Attacks . | . . . . . . Damage Inflicted 4455 | . 90 414 2226 731 994 Guns 2373 | . 90 405 1378 425 75 Cannons 340 | . . . 340 . . Explosions 1681 | . . . 460 302 919 Melee . | . . . . . . Ramming 61 | . . 9 48 4 . Kinetic 2171 | . 27 266 1378 425 75 Thermal 542 | . 63 139 340 . . Explosive 1681 | . . . 460 302 919 Electromagnetic . | . . . . . . Impact . | . . . . . . Slashing . | . . . . . . Piercing . | . . . . . . Highest Corruption 13 | . 1 13 . . 8 Average Corruption 1 | . 1 2 . . 1 Corruption Purged . | . . . . . . Corruption Blocked . | . . . . . . Effects 10 | . 1 5 . . 4 Message Errors 2 | . 1 . . . 1 Matter Fused 3 | . . 1 . . 2 Heat Flow Errors 1 | . . 1 . . . Energy Discharges 2 | . . 2 . . . Data Loss (minor) 1 | . . . . . 1 Alerts 1 | . . 1 . . . Overload Shots . | . . . . . . Overflow Damage 59 | . . . . 45 14 Projectiles . | . . . . . . Explosions 59 | . . . . 45 14 Melee . | . . . . . . Knockbacks 1 | . . . 1 . . Impact 1 | . . . 1 . . Kinetic . | . . . . . . Secondary . | . . . . . . Self-Inflicted Damage 35 | . . . . 35 . Shots 1 | . . . . 1 . Rammed 7 | . . . 5 2 . Targets Rammed 12 | . . 3 7 2 . Kicked 5 | . . 3 2 . . Crushed . | . . . . . . Highest Temperature 280 | . 50 280 272 5 42 Average Temperature 75 | . 22 99 87 2 13 Received Heat Transfer 522 | . . . 405 93 24 Siege Activations . | . . . . . . Robots Corrupted . | . . . . . . Combat Hostiles . | . . . . . . Parts Fried . | . . . . . . Impact Corruptions . | . . . . . . Robots Melted 1 | . . . 1 . . Combat Hostiles 1 | . . . 1 . . Parts Melted 2 | . . 1 1 . . Heat Transferred 1184 | . 185 407 592 . . Parts Sabotaged . | . . . . . . Parts Stolen . | . . . . . . Parts Stripped . | . . . . . . Power Chain Reactions . | . . . . . . Alert | -11 -10 -10 -9 -9 -9 ------- Run | Yrd Mat Min Mat Min Exi Peak Influence 397 | . 49 208 397 274 . Initial 154 | . . 18 27 154 . Average 145 | . 15 107 158 199 . Maximum Alert Level 1 | . . 1 1 1 . Low Security (%) 69 | 100 100 76 65 61 . Level 1 30 | . . 23 34 38 . Level 2 . | . . . . . . Level 3 . | . . . . . . Level 4 . | . . . . . . Level 5 . | . . . . . . High Security . | . . . . . . Max Security . | . . . . . . Squads Dispatched 1 | . . . 1 . . Investigation . | . . . . . . Extermination . | . . . . . . Reinforcement 1 | . . . 1 . . Assault . | . . . . . . Garrison . | . . . . . . Intercept . | . . . . . . Searches Triggered . | . . . . . . Construction Impeded . | . . . . . . Haulers Reinforced . | . . . . . . Active Scanning Responses . | . . . . . . Cargo Convoy Interrupts . | . . . . . . Stealth | -11 -10 -10 -9 -9 -9 --------- Run | Yrd Mat Min Mat Min Exi Distress Signals 4 | . . . 4 . . Communications Jammed . | . . . . . . Distress Signals . | . . . . . . Times Spotted 94 | . 2 10 36 11 35 Peak Tracking Total 12 | . 1 3 6 4 12 Tactical Retreats 5 | . . 1 1 2 1 Traps | -11 -10 -10 -9 -9 -9 ------- Run | Yrd Mat Min Mat Min Exi Traps Triggered 4 | . 1 . 3 . . Indirectly . | . . . . . . Trap Hack Attempts . | . . . . . . Triggered . | . . . . . . Disarmed . | . . . . . . Reprogrammed . | . . . . . . Reused . | . . . . . . Traps Extracted . | . . . . . . Installed . | . . . . . . Triggered . | . . . . . . Machines | -11 -10 -10 -9 -9 -9 ---------- Run | Yrd Mat Min Mat Min Exi Machines Disabled 5 | . . . . 2 3 Max in Single Turn 2 | . . . . 2 . Machines Repaired . | . . . . . . Machines Dismantled . | . . . . . . Machines Sabotaged . | . . . . . . Overloaded Fab Kills . | . . . . . . Hacking | -11 -10 -10 -9 -9 -9 --------- Run | Yrd Mat Min Mat Min Exi Machines Accessed 15 | . 3 . 9 1 2 Terminals 10 | . 3 . 6 1 . Fabricators . | . . . . . . Repair Stations 1 | . . . 1 . . Recycling Units 1 | . . . 1 . . Scanalyzers 1 | . . . 1 . . Garrison Access . | . . . . . . Total Hacks 36 | . 7 . 23 4 2 Successful 11 | . . . 9 . 2 Failed 25 | . 7 . 14 4 . Catastrophic 8 | . 1 . 6 1 . Database Lockouts . | . . . . . . Manual 34 | . 7 . 22 4 1 Terminals 27 | . 7 . 16 4 . Fabricators . | . . . . . . Repair Stations 2 | . . . 2 . . Recycling Units 4 | . . . 4 . . Scanalyzers 1 | . . . 1 . . Garrison Access . | . . . . . . Terminal Hacks 5 | . . . 3 . 2 Record 1 | . . . . . 1 Robot Analysis 3 | . . . 3 . . Derelict Proto ID Bank 1 | . . . . . 1 Fabricator Hacks . | . . . . . . Repair Station Hacks 2 | . . . 2 . . Scan Component 1 | . . . 1 . . Repair 1 | . . . 1 . . Recycling Unit Hacks . | . . . . . . Scanalyzer . | . . . . . . Garrison Access Hacks . | . . . . . . Unauthorized Hacks 4 | . . . 4 . . Terminals 1 | . . . 1 . . Operators 1 | . . . 1 . . Fabricators . | . . . . . . Repair Stations . | . . . . . . Recycling Units 3 | . . . 3 . . Monitor 1 | . . . 1 . . Reject 1 | . . . 1 . . Recyclers 1 | . . . 1 . . Scanalyzers . | . . . . . . Garrison Access . | . . . . . . Data Cores Recovered . | . . . . . . Used . | . . . . . . Hacking Detections 13 | . 3 . 9 1 . Full Trace Events 2 | . 1 . . 1 . Feedback Events . | . . . . . . Feedback Blocked . | . . . . . . Robot Schematics Acquired . | . . . . . . Robots Built . | . . . . . . Authchips . | . . . . . . Time . | . . . . . . Total Robot Build Rating . | . . . . . . Part Schematics Acquired . | . . . . . . Parts Built . | . . . . . . Authchips . | . . . . . . Time . | . . . . . . Total Part Build Rating . | . . . . . . Parts Repaired 1 | . . . 1 . . Time 26 | . . . 26 . . Parts Recycled . | . . . . . . Recycled Matter . | . . . . . . Retrieved Matter . | . . . . . . Retrieved Components . | . . . . . . Parts Scanalyzed . | . . . . . . Part Schematics Acquired . | . . . . . . Parts Damaged . | . . . . . . Bothacking | -11 -10 -10 -9 -9 -9 ------------ Run | Yrd Mat Min Mat Min Exi Used RIF Installer . | . . . . . . Robots Hacked . | . . . . . . Non-combat . | . . . . . . Combat . | . . . . . . Robot Hacks Applied . | . . . . . . Relay Couplers Released . | . . . . . . Fabnet Peak Effective % . | . . . . . . Robots Rewired . | . . . . . . Allies Hacked . | . . . . . . Hacks Repelled . | . . . . . . Allies | -11 -10 -10 -9 -9 -9 -------- Run | Yrd Mat Min Mat Min Exi Total Allies 4 | . . 3 . 1 . Largest Group 3 | . . 3 . 1 . Highest-Rated Group 40 | . . 40 . 31 . Highest-Rated Ally 31 | . . 16 . 31 . Total Orders 5 | . . 2 . . 3 STAY 3 | . . 2 . . 1 EXPLORE 2 | . . . . . 2 Ally Attacks 136 | . . 14 . 1 121 Total Damage 6105 | . . 123 . 22 5960 Kills 55 | . . 4 . 1 50 Allies Corrupted . | . . . . . . Allies Melted . | . . . . . . Turrets Deployed 3 | . . . . . 3 Intel | -11 -10 -10 -9 -9 -9 ------- Run | Yrd Mat Min Mat Min Exi Robot Analysis Total 3 | . . . 3 . . Derelict Logs Recovered 2 | . . 1 . 1 . Drone Launches 1 | . . . . . 1 Drone Recoveries . | . . . . . . Exploration | -11 -10 -10 -9 -9 -9 ------------- Run | Yrd Mat Min Mat Min Exi Turns Passed 6084 | 2 359 674 2393 759 1897 Spaces Moved 3029 | 1 274 448 1169 426 711 Core 18 | . . . . . 18 Treads 2148 | . . 25 1004 426 693 Legs 863 | 1 274 423 165 . . Wheels . | . . . . . . Hover . | . . . . . . Flight . | . . . . . . Fastest Speed 120 | 120 120 120 120 160 160 Average Speed 154 | 120 120 122 163 160 169 Slowest Speed 550 | 120 120 190 190 160 550 Overloaded Moves . | . . . . . . Propulsion Burnouts . | . . . . . . Robots Hopped . | . . . . . . Cave-ins Triggered 1 | . . . . . 1 Exploration Rate (%) 61 | 1 43 78 80 95 71 Regions Visited 5 Branch Regions 3 Pre-discovered Areas 2 | . . 1 . . 1 Known Exits Taken . | . . . . . . Unknown Exits Taken 5 | 1 1 1 1 1 . Scrap Searched 2 | . . . . 2 . Spaces Dug 17 | . . . . . 17 Terrain Destroyed 117 | . . . 32 22 63 Melee . | . . . . . . Projectile . | . . . . . . AOE 117 | . . . 32 22 63 Terrain Rammed . | . . . . . . Walls Destroyed . | . . . . . . Machines Disabled . | . . . . . . Actions | -11 -10 -10 -9 -9 -9 --------- Run | Yrd Mat Min Mat Min Exi Total 4133 | 1 290 516 1490 457 1379 Wait 773 | . . 5 135 1 632 Move 3023 | . 273 447 1168 425 710 Hop . | . . . . . . Pick Up 41 | . 5 6 25 . 5 Fast Attach 20 | . 1 3 15 . 1 Attach 11 | . . 3 2 1 5 Detach 2 | . . 2 . . . Swap 36 | 1 1 2 21 4 7 Drop 50 | . 2 8 32 . 8 Fire 164 | . 8 37 85 24 10 Melee . | . . . . . . Ram . | . . . . . . Kick 5 | . . 3 2 . . Crush 7 | . . . 5 2 . Escape Stasis 1 | . . . . . 1 Rewire . | . . . . . . Trap . | . . . . . . Miscellaneous . | . . . . . . Route ------- -11/Scrapyard -10/Materials (discovered 3 exits: *Mat / [*Min x2]) -10/Mines -9/Materials (discovered 3 exits: [*Mat x2] / *Min) -9/Mines (discovered 3 exits: [*Mat x2] / *Exi) -9/Exiles (discovered 1 exit: [*Min]) History --------- Turn | Location | Event 3 | -11/Scrapyard | Discovered new exit (range 0) 3 | -11/Scrapyard | Entered Materials 138 | -10/Materials | Discovered new exit (range 4) 149 | -10/Materials | Discovered new exit (range 14) 295 | -10/Materials | Discovered new exit (range 6) 302 | -10/Materials | Build established: Mutant 362 | -10/Materials | Entered Mines 709 | -10/Mines | Learned location of Mines (-9) 717 | -10/Mines | Discovered new exit (range 15) 738 | -10/Mines | Assisted by bots powering up and referring to "LRC-V3" 880 | -10/Mines | Assembled infested the area 885 | -10/Mines | Assisted by a Guerilla fighting off Assembled 967 | -10/Mines | System corruption reached 10% 997 | -10/Mines | Lost 3 parts (1p1n1u) 1036 | -10/Mines | Entered Materials 1036 | -9/Materials | Evolved 2 slots: Propulsion x1, Utility x1 1510 | -9/Materials | Discovered new exit (range 4) 1723 | -9/Materials | Build established: Scavenger-Mutant 2160 | -9/Materials | Repaired Lgt. Treads 2428 | -9/Materials | Discovered new exit (range 3) 2825 | -9/Materials | Discovered new exit (range 15) 2934 | -9/Materials | Build established: Mutant 3429 | -9/Materials | Entered Mines 3499 | -9/Mines | Met a Derelict bent on vengeance 3605 | -9/Mines | Build established: Scavenger-Mutant 3681 | -9/Mines | Received a Mining Laser from a helpful Derelict 3832 | -9/Mines | Excavation squad dispatched 3832 | -9/Mines | A large section of the Mines collapsed 3955 | -9/Mines | Core integrity fell below 50% 4010 | -9/Mines | Discovered new exit (range 7) 4140 | -9/Mines | Discovered new exit (range 12) 4181 | -9/Mines | Deemed a non-threat by the Exiles lab entrance 4181 | -9/Mines | Discovered new exit (range 5) 4188 | -9/Mines | Entered Exiles 4227 | -9/Exiles | Met 8R-AWN 4256 | -9/Exiles | Met EX-HEX 4315 | -9/Exiles | Met EX-DEC 4435 | -9/Exiles | Discovered new exit (range 10) 4543 | -9/Exiles | Met EX-BIN 4574 | -9/Exiles | Learned location of Zion (-6) 4689 | -9/Exiles | Aligned with FarCom system 4690 | -9/Exiles | Given EX-Vault access code 4737 | -9/Exiles | Opened EX-Vault 4748 | -9/Exiles | Found Supersonic Drone Bay 4751 | -9/Exiles | Found Deploy-a-Sentry 4753 | -9/Exiles | Found Deploy-a-Sentry 4756 | -9/Exiles | Found Deploy-a-Sentry 4787 | -9/Exiles | Warned to stay clear of 0b10 Research branches 4806 | -9/Exiles | Exiles lab attacked by MAIN.C 4893 | -9/Exiles | Found Modified TNC 4954 | -9/Exiles | DAS Turret deployed 4958 | -9/Exiles | DAS Turret deployed 4965 | -9/Exiles | DAS Turret deployed 5712 | -9/Exiles | Destroyed 7 combat bots 5746 | -9/Exiles | Lost 3 parts (1p1n1u) 6081 | -9/Exiles | Crushed by falling debris 6082 | -9/Exiles | Core integrity fell below 20% 6085 | -9/Exiles | Destroyed by P-60 Hacker with Shock Rifle Last Messages --------------- 06026_ Acquired 27 matter. 06027_ Acquired 12 matter. 06034_ System corrupted: Matter fused (-9). 06034_ Acquired 9 matter. 06058_ Hvy. Assault Rifle destroyed. 06068_ Machine disabled. 06071_ Lgt. Armor Plating destroyed. 06071_ Penetrated by Slug. 06074_ Machine disabled. 06074_ Hvy. Assault Rifle destroyed. 06075_ System corrupted: Component data lost. 06078_ Penetrated by Slug. 06081_ The unstable cave ceiling collapses. 06081_ Crushed by falling debris. 06081_ Modified TNC destroyed. 06081_ System corrupted by crushing effect (+2). 06081_ Lgt. Treads destroyed. 06081_ System corrupted by crushing effect (+3). 06082_ Lgt. Treads destroyed. 06084_ Slug penetrates Earth. Map ----- +----------------------------------------------------+ | ????????????????# #??"""""???????????????????? | | ????????????????# ## """#??????????????????? | | ????????????????# X""#??????????????????? | | ????????????????# ## """#??????????????????? | | ????????######??# #??"""""???????????????????? | | ????????#""""""?# #???####???????????????????? | | ?????????"""" ## #??????????????????????????? | | ????????#""X" #??????????????????????????? | | ????????#" #??????????????????????????? | | ????????#" ## #??????????????????????????? | | ????????#""""""?# #?#########????????????????? | | ????????##"###??#t!t t#?#"""""""#????????????????? | | ????????? ??????# #?#"""""""#????????????????? | | ????????????????# #?#"""""""#????????????????? | | ???????????????## ###"" """"#????????????????? | | ???????????????#" """"#????????????????? | | ???????????????#" """#????????????????? | | ???????????????# """#????????????????? | | ???????????????# """#????????????????? | | ??##???????????#" """#????????????????? | | ?? """????????#" """##???????????????? | | ??" """??????###; """"""??????????????? | | ??" ?????## """######???????????? | | ?"" ???#?#### [ " """"" #???????????? | | ?"" "#??# ## "" # "??????????????? | | ? ""???# ## @ """""#????????????????? | | ??" "????## # # = == ######????????????????? | | ??# #?????# # / [ = #?????????????????????? | | ### ###?### # * # #?????????????????????? | | #X# #"###""" [ * # # ##????????????????????? | | """""" " = %[# #########????????????? | | "" """ = [ % %=*% #"""""""""##?????????? | | " " [=!* = =%*[ """ """"##????????? | | % * ![= [=% p "" " #????????? | | =%!%==% " """#????????? | | [= " "#????????? | | " "##???????? | | ""###?????? | | """"" """#?????? | | ######""" "#????## | | ""##????#####""" ##???# | | """##?????????##""" #?## | | """##???????????#"""" ## | | ""#????????????#"" | | ########???###"""" | | ## ####""" | | """" #"" | | #### | | ##??? | | % " ##???? | +----------------------------------------------------+ Best States ------------- Heat Dissipation 28 Energy Generation 14 Energy Capacity 280 Matter Stores 300 Matter Capacity 300 Sight Range 16 Terrain Scan Density 10 Armor Coverage 300 Evasion (%) 55 Targeting Accuracy 5 Recoil Reduction 3 Salvage Targeting 1 Item Schematics ----------------- None Robot Schematics ------------------ None Fabricated ------------ Nothing Alien Tech Used ----------------- None Achievements -------------- None Challenges ------------ None Game ------ Seed ControlOpticalFacilitator Manual? 0 Play Time 00:33:07 Cumulative 279.9 hours Start 2024.06.22 @ 05:15:18 End 2024.06.22 @ 05:46:19 Sessions 1 Manual Loads 0 Difficulty Rogue Special Mode None Game No. 359 Rogue 359 Adventurer 0 Explorer 0 Win Type - Total 9 Types 8/0/0/1/0/0/0/0/0 Lore% 84 Gallery% 89 Achievement% 71 Wizard Run 0 Options --------- Layout 0 ASCII 0 Keyboard 1 Movement Numpad Keybinds 0 Fullscreen 2 Font 18/SmallcapsGlow Map View 76x50 Zoom Use 0% Tactical HUD 1 Map Filters NONE Filters NONE Steam 1 RUN: 847592cc-2d50-49ca-96f4-c92bfa6fa8a9